[Event "December 5 Late 2023"]
[Site "https://www.chess.com"]
[Date "2023.12.05"]
[Round "4"]
[White "Golubev, Mikhail"]
[Black "Polanco Nunez, Yoel Estarling"]
[Result "1-0"]
[Board "80"]
[TimeControl "180+1"]
[WhiteFideId "14100983"]
[BlackFideId "6401783"]
[WhiteElo "2631"]
[BlackElo "2291"]
[WhiteTeam "UKR"]
[BlackTeam "DOM"]
[WhiteClock "0:00:05"]
[BlackClock "0:00:00"]

1. e4 {[%clk 0:03:00]}  c5 {[%clk 0:02:59]} 2. Nf3 {[%clk 0:03:00]}  d6 {[%clk 0:03:00]} 3. d4 {[%clk 0:03:00]}  cxd4 {[%clk 0:03:01]} 4. Nxd4 {[%clk 0:03:00]}  Nf6 {[%clk 0:03:01]} 5. Nc3 {[%clk 0:03:00]}  a6 {[%clk 0:03:02]} 6. Bc4 {[%clk 0:02:59]}  Nc6 {[%clk 0:02:58]} 7. Be3 {[%clk 0:02:55]}  e6 {[%clk 0:02:54]} 8. Bb3 {[%clk 0:02:51]}  d5 {[%clk 0:02:49]} 9. exd5 {[%clk 0:02:46]}  Nxd5 {[%clk 0:02:41]} 10. Nxd5 {[%clk 0:02:42]}  exd5 {[%clk 0:02:41]} 11. Qf3 {[%clk 0:01:52]}  Be6 {[%clk 0:02:11]} 12. O-O-O {[%clk 0:01:47]}  Qd7 {[%clk 0:01:41]} 13. Rhe1 {[%clk 0:01:01]}  O-O-O {[%clk 0:01:40]} 14. Bg5 {[%clk 0:00:24]}  Bg4 {[%clk 0:00:44]} 15. Qd3 {[%clk 0:00:09]}  f6 {[%clk 0:00:29]} 16. f3 {[%clk 0:00:09]}  Bh5 {[%clk 0:00:29]} 17. Bf4 {[%clk 0:00:08]}  g5 {[%clk 0:00:24]} 18. Nxc6 {[%clk 0:00:07]}  Qxc6 {[%clk 0:00:21]} 19. Qf5+ {[%clk 0:00:07]}  Qd7 {[%clk 0:00:10]} 20. Qxd7+ {[%clk 0:00:07]}  Rxd7 {[%clk 0:00:08]} 21. Bg3 {[%clk 0:00:06]}  Bf7 {[%clk 0:00:06]} 22. c3 {[%clk 0:00:05]}  Bc5 {[%clk 0:00:00]} 23. Bc2 {[%clk 0:00:05]} 1-0

[Event "December 5 Late 2023"]
[Site "https://www.chess.com"]
[Date "2023.12.05"]
[Round "4"]
[White "Chlpik, Martin"]
[Black "Koksal, Ege"]
[Result "0-1"]
[Board "81"]
[TimeControl "180+1"]
[WhiteFideId "14923351"]
[BlackFideId "6317626"]
[WhiteElo "2269"]
[BlackElo "2628"]
[WhiteTeam "SVK"]
[BlackTeam "TUR"]
[WhiteClock "0:00:00"]
[BlackClock "0:00:08"]

1. d4 {[%clk 0:03:00]}  Nf6 {[%clk 0:02:59]} 2. c4 {[%clk 0:03:00]}  e6 {[%clk 0:02:59]} 3. Nc3 {[%clk 0:02:59]}  Bb4 {[%clk 0:02:59]} 4. a3 {[%clk 0:03:00]}  Bxc3+ {[%clk 0:02:59]} 5. bxc3 {[%clk 0:03:01]}  c5 {[%clk 0:02:58]} 6. e3 {[%clk 0:03:01]}  O-O {[%clk 0:02:58]} 7. Bd3 {[%clk 0:03:01]}  b6 {[%clk 0:02:58]} 8. Ne2 {[%clk 0:02:58]}  Nc6 {[%clk 0:02:58]} 9. e4 {[%clk 0:02:45]}  d6 {[%clk 0:02:50]} 10. O-O {[%clk 0:02:40]}  Ba6 {[%clk 0:02:50]} 11. f4 {[%clk 0:02:36]}  Na5 {[%clk 0:02:43]} 12. e5 {[%clk 0:02:20]}  Ne8 {[%clk 0:02:43]} 13. f5 {[%clk 0:02:14]}  exf5 {[%clk 0:02:40]} 14. Ng3 {[%clk 0:02:00]}  Bxc4 {[%clk 0:02:19]} 15. Bxc4 {[%clk 0:01:39]}  Nxc4 {[%clk 0:02:19]} 16. Nxf5 {[%clk 0:01:39]}  dxe5 {[%clk 0:01:52]} 17. Qf3 {[%clk 0:01:39]}  Ncd6 {[%clk 0:01:23]} 18. Ne7+ {[%clk 0:01:28]}  Qxe7 {[%clk 0:01:22]} 19. Qxa8 {[%clk 0:01:28]}  Nf6 {[%clk 0:00:59]} 20. Qc6 {[%clk 0:01:19]}  Rc8 {[%clk 0:00:54]} 21. Qf3 {[%clk 0:01:16]}  cxd4 {[%clk 0:00:54]} 22. cxd4 {[%clk 0:01:14]}  e4 {[%clk 0:00:54]} 23. Qg3 {[%clk 0:01:11]}  Nd5 {[%clk 0:00:49]} 24. Bh6 {[%clk 0:00:58]}  g6 {[%clk 0:00:39]} 25. Bg5 {[%clk 0:00:58]}  f6 {[%clk 0:00:35]} 26. Qb3 {[%clk 0:00:58]}  Qf7 {[%clk 0:00:26]} 27. Bh4 {[%clk 0:00:50]}  Nf5 {[%clk 0:00:18]} 28. Bg3 {[%clk 0:00:45]}  Nxd4 {[%clk 0:00:08]} 29. Qa4 {[%clk 0:00:36]}  Ne2+ {[%clk 0:00:06]} 30. Kh1 {[%clk 0:00:35]}  Nxg3+ {[%clk 0:00:06]} 31. hxg3 {[%clk 0:00:36]}  f5 {[%clk 0:00:07]} 32. Rac1 {[%clk 0:00:35]}  Rf8 {[%clk 0:00:06]} 33. Qc6 {[%clk 0:00:34]}  Ne3 {[%clk 0:00:05]} 34. Rfe1 {[%clk 0:00:33]}  Ng4 {[%clk 0:00:05]} 35. Qd6 {[%clk 0:00:31]}  Qg7 {[%clk 0:00:05]} 36. Qf4 {[%clk 0:00:29]}  g5 {[%clk 0:00:06]} 37. Qd6 {[%clk 0:00:20]}  h6 {[%clk 0:00:03]} 38. Rc7 {[%clk 0:00:19]}  Rf7 {[%clk 0:00:03]} 39. Qe6 {[%clk 0:00:14]}  Ne5 {[%clk 0:00:02]} 40. Rd1 {[%clk 0:00:13]}  Kh7 {[%clk 0:00:03]} 41. Rxf7 {[%clk 0:00:11]}  Nxf7 {[%clk 0:00:03]} 42. Rd7 {[%clk 0:00:11]}  Kg8 {[%clk 0:00:04]} 43. Rd8+ {[%clk 0:00:10]}  Kh7 {[%clk 0:00:04]} 44. Qxf5+ {[%clk 0:00:09]}  Qg6 {[%clk 0:00:04]} 45. Qxg6+ {[%clk 0:00:01]}  Kxg6 {[%clk 0:00:05]} 46. Re8 {[%clk 0:00:01]}  Kf5 {[%clk 0:00:05]} 47. Rf8 {[%clk 0:00:01]}  Kf6 {[%clk 0:00:05]} 48. Re8 {[%clk 0:00:01]}  Nd6 {[%clk 0:00:06]} 49. Rf8+ {[%clk 0:00:01]}  Ke5 {[%clk 0:00:06]} 50. Rf1 {[%clk 0:00:01]}  Kd4 {[%clk 0:00:07]} 51. Rf6 {[%clk 0:00:01]}  Nc4 {[%clk 0:00:07]} 52. Kg1 {[%clk 0:00:01]}  e3 {[%clk 0:00:07]} 53. Kf1 {[%clk 0:00:00]}  Kd3 {[%clk 0:00:08]} 0-1

[Event "December 5 Late 2023"]
[Site "https://www.chess.com"]
[Date "2023.12.05"]
[Round "4"]
[White "Tanriverdi, Enes"]
[Black "Wieczorek, Zbigniew"]
[Result "1-0"]
[Board "82"]
[TimeControl "180+1"]
[WhiteFideId "34543279"]
[BlackFideId "1102001"]
[WhiteElo "2623"]
[BlackElo "2222"]
[WhiteTeam "TUR"]
[BlackTeam "POL"]
[WhiteClock "0:00:10"]
[BlackClock "0:00:03"]

1. e4 {[%clk 0:02:59]}  g6 {[%clk 0:03:00]} 2. Nf3 {[%clk 0:03:00]}  Bg7 {[%clk 0:03:00]} 3. d4 {[%clk 0:03:00]}  c6 {[%clk 0:03:00]} 4. c4 {[%clk 0:02:57]}  d6 {[%clk 0:02:57]} 5. Nc3 {[%clk 0:02:57]}  Nd7 {[%clk 0:02:56]} 6. Be2 {[%clk 0:02:56]}  e5 {[%clk 0:02:57]} 7. O-O {[%clk 0:02:55]}  Ngf6 {[%clk 0:02:57]} 8. Qc2 {[%clk 0:02:53]}  O-O {[%clk 0:02:57]} 9. Rd1 {[%clk 0:02:53]}  Qe7 {[%clk 0:02:54]} 10. Be3 {[%clk 0:02:50]}  h6 {[%clk 0:02:49]} 11. h3 {[%clk 0:02:48]}  Re8 {[%clk 0:02:46]} 12. d5 {[%clk 0:02:45]}  c5 {[%clk 0:02:20]} 13. a3 {[%clk 0:02:36]}  Nh5 {[%clk 0:02:17]} 14. b4 {[%clk 0:02:25]}  b6 {[%clk 0:02:14]} 15. bxc5 {[%clk 0:02:22]}  Nxc5 {[%clk 0:02:13]} 16. a4 {[%clk 0:02:21]}  a5 {[%clk 0:02:11]} 17. Rab1 {[%clk 0:02:20]}  Ra6 {[%clk 0:02:00]} 18. Rb2 {[%clk 0:02:19]}  Nf4 {[%clk 0:01:58]} 19. Rdb1 {[%clk 0:02:18]}  Qd8 {[%clk 0:01:51]} 20. Bf1 {[%clk 0:01:35]}  f5 {[%clk 0:01:46]} 21. Nd2 {[%clk 0:01:32]}  Bd7 {[%clk 0:01:15]} 22. exf5 {[%clk 0:01:20]}  Bxf5 {[%clk 0:01:12]} 23. Nde4 {[%clk 0:01:19]}  g5 {[%clk 0:00:56]} 24. Bxc5 {[%clk 0:01:14]}  dxc5 {[%clk 0:00:43]} 25. Qd1 {[%clk 0:01:05]}  Rf8 {[%clk 0:00:24]} 26. d6 {[%clk 0:00:53]}  Ne6 {[%clk 0:00:17]} 27. Bd3 {[%clk 0:00:40]}  Nd4 {[%clk 0:00:14]} 28. Nd5 {[%clk 0:00:40]}  Bxe4 {[%clk 0:00:08]} 29. Bxe4 {[%clk 0:00:39]}  Qxd6 {[%clk 0:00:09]} 30. Rxb6 {[%clk 0:00:39]}  Rxb6 {[%clk 0:00:10]} 31. Rxb6 {[%clk 0:00:40]}  Qd8 {[%clk 0:00:10]} 32. Qh5 {[%clk 0:00:34]}  Rf4 {[%clk 0:00:04]} 33. Nxf4 {[%clk 0:00:14]}  exf4 {[%clk 0:00:04]} 34. Bd5+ {[%clk 0:00:11]}  Kh8 {[%clk 0:00:03]} 35. Rxh6+ {[%clk 0:00:10]}  Bxh6 {[%clk 0:00:03]} 36. Qxh6# {[%clk 0:00:10]} 1-0

[Event "December 5 Late 2023"]
[Site "https://www.chess.com"]
[Date "2023.12.05"]
[Round "4"]
[White "Erzhanov, Arman"]
[Black "Galaktionov, Artem"]
[Result "0-1"]
[Board "85"]
[TimeControl "180+1"]
[WhiteFideId "4138821"]
[BlackFideId "24175471"]
[WhiteElo "2527"]
[BlackElo "2837"]
[WhiteTeam "KAZ"]
[BlackTeam "RUS"]
[WhiteClock "0:00:00"]
[BlackClock "0:01:00"]

1. e4 {[%clk 0:03:00]}  c6 {[%clk 0:02:59]} 2. d4 {[%clk 0:03:00]}  g6 {[%clk 0:02:52]} 3. Nf3 {[%clk 0:02:58]}  Bg7 {[%clk 0:02:52]} 4. Nc3 {[%clk 0:02:58]}  d6 {[%clk 0:02:51]} 5. h3 {[%clk 0:02:58]}  Nd7 {[%clk 0:02:51]} 6. a4 {[%clk 0:02:58]}  e5 {[%clk 0:02:51]} 7. dxe5 {[%clk 0:02:58]}  dxe5 {[%clk 0:02:52]} 8. Bc4 {[%clk 0:02:57]}  Ngf6 {[%clk 0:02:52]} 9. O-O {[%clk 0:02:55]}  O-O {[%clk 0:02:52]} 10. b3 {[%clk 0:02:56]}  h6 {[%clk 0:02:50]} 11. Ba3 {[%clk 0:02:56]}  Re8 {[%clk 0:02:50]} 12. Qe2 {[%clk 0:02:38]}  Nh5 {[%clk 0:02:48]} 13. Rfd1 {[%clk 0:02:29]}  Nf4 {[%clk 0:02:48]} 14. Qf1 {[%clk 0:02:24]}  Ne6 {[%clk 0:02:48]} 15. Rd2 {[%clk 0:02:19]}  Nd4 {[%clk 0:02:47]} 16. Be2 {[%clk 0:02:05]}  Qa5 {[%clk 0:02:39]} 17. Bb2 {[%clk 0:02:03]}  Nc5 {[%clk 0:02:37]} 18. Rad1 {[%clk 0:02:02]}  Nce6 {[%clk 0:02:37]} 19. Ne1 {[%clk 0:01:54]}  Nf4 {[%clk 0:02:31]} 20. Bd3 {[%clk 0:01:50]}  Be6 {[%clk 0:02:28]} 21. Ne2 {[%clk 0:01:35]}  Nfxe2+ {[%clk 0:02:25]} 22. Bxe2 {[%clk 0:01:36]}  c5 {[%clk 0:02:18]} 23. Kh1 {[%clk 0:01:18]}  Rac8 {[%clk 0:02:11]} 24. Bc4 {[%clk 0:01:18]}  Qb6 {[%clk 0:02:07]} 25. Ba3 {[%clk 0:00:55]}  Qc6 {[%clk 0:01:55]} 26. f3 {[%clk 0:00:54]}  a6 {[%clk 0:01:54]} 27. Bb2 {[%clk 0:00:50]}  h5 {[%clk 0:01:49]} 28. Bxe6 {[%clk 0:00:34]}  Qxe6 {[%clk 0:01:49]} 29. Nd3 {[%clk 0:00:34]}  b5 {[%clk 0:01:41]} 30. axb5 {[%clk 0:00:33]}  axb5 {[%clk 0:01:42]} 31. Bxd4 {[%clk 0:00:20]}  cxd4 {[%clk 0:01:42]} 32. Ra1 {[%clk 0:00:18]}  Qd6 {[%clk 0:01:35]} 33. Qe2 {[%clk 0:00:13]}  Rc3 {[%clk 0:01:33]} 34. Ra2 {[%clk 0:00:13]}  Rec8 {[%clk 0:01:33]} 35. Rd1 {[%clk 0:00:12]}  Qc6 {[%clk 0:01:11]} 36. Ne1 {[%clk 0:00:01]}  Bf6 {[%clk 0:01:07]} 37. Rda1 {[%clk 0:00:02]}  Bh4 {[%clk 0:01:07]} 38. Ra6 {[%clk 0:00:02]}  Qc5 {[%clk 0:01:05]} 39. Ra7 {[%clk 0:00:00]}  Re3 {[%clk 0:01:00]} 0-1

[Event "December 5 Late 2023"]
[Site "https://www.chess.com"]
[Date "2023.12.05"]
[Round "4"]
[White "Chylewski, Patryk"]
[Black "Brodsky, David"]
[Result "0-1"]
[Board "86"]
[TimeControl "180+1"]
[WhiteFideId "1186191"]
[BlackFideId "2073250"]
[WhiteElo "2517"]
[BlackElo "2788"]
[WhiteTeam "POL"]
[BlackTeam "USA"]
[WhiteClock "0:00:00"]
[BlackClock "0:00:05"]

1. d4 {[%clk 0:03:00]}  a6 {[%clk 0:03:00]} 2. e4 {[%clk 0:02:58]}  c6 {[%clk 0:03:00]} 3. c4 {[%clk 0:02:46]}  d5 {[%clk 0:03:00]} 4. Nc3 {[%clk 0:02:44]}  dxe4 {[%clk 0:02:53]} 5. Nxe4 {[%clk 0:02:45]}  Nf6 {[%clk 0:02:53]} 6. Ng3 {[%clk 0:02:38]}  h5 {[%clk 0:02:50]} 7. h4 {[%clk 0:02:26]}  Bg4 {[%clk 0:02:49]} 8. Be2 {[%clk 0:02:25]}  e6 {[%clk 0:02:47]} 9. Nh3 {[%clk 0:01:57]}  Bd6 {[%clk 0:02:27]} 10. Nf1 {[%clk 0:01:01]}  Nbd7 {[%clk 0:01:45]} 11. Ne3 {[%clk 0:00:59]}  Bb4+ {[%clk 0:01:37]} 12. Bd2 {[%clk 0:00:56]}  Bxd2+ {[%clk 0:01:37]} 13. Qxd2 {[%clk 0:00:57]}  Ne4 {[%clk 0:01:37]} 14. Qc2 {[%clk 0:00:19]}  Qa5+ {[%clk 0:01:31]} 15. Kf1 {[%clk 0:00:19]}  Nd2+ {[%clk 0:01:27]} 16. Kg1 {[%clk 0:00:13]}  Bxe2 {[%clk 0:01:24]} 17. a3 {[%clk 0:00:11]}  Nf3+ {[%clk 0:01:01]} 18. gxf3 {[%clk 0:00:10]}  Bxf3 {[%clk 0:01:02]} 19. Ng2 {[%clk 0:00:04]}  Nf6 {[%clk 0:01:00]} 20. Ng5 {[%clk 0:00:04]}  Bg4 {[%clk 0:00:45]} 21. Re1 {[%clk 0:00:04]}  Rd8 {[%clk 0:00:44]} 22. b4 {[%clk 0:00:04]}  Qc7 {[%clk 0:00:41]} 23. f3 {[%clk 0:00:04]}  Rxd4 {[%clk 0:00:26]} 24. fxg4 {[%clk 0:00:04]}  Rxg4 {[%clk 0:00:21]} 25. Qf2 {[%clk 0:00:03]}  O-O {[%clk 0:00:20]} 26. Rh3 {[%clk 0:00:03]}  Rd8 {[%clk 0:00:17]} 27. Rf3 {[%clk 0:00:03]}  Qe7 {[%clk 0:00:11]} 28. Kh1 {[%clk 0:00:03]}  Rd7 {[%clk 0:00:09]} 29. Ne3 {[%clk 0:00:03]}  Re4 {[%clk 0:00:08]} 30. Ng2 {[%clk 0:00:02]}  Ng4 {[%clk 0:00:08]} 31. Qg3 {[%clk 0:00:01]}  Rxe1+ {[%clk 0:00:07]} 32. Nxe1 {[%clk 0:00:02]}  Qd8 {[%clk 0:00:05]} 33. Kg2 {[%clk 0:00:01]}  Rd2+ {[%clk 0:00:06]} 34. Kg1 {[%clk 0:00:00]}  Qd4+ {[%clk 0:00:05]} 0-1

[Event "December 5 Late 2023"]
[Site "https://www.chess.com"]
[Date "2023.12.05"]
[Round "4"]
[White "Skvortsov, Andrei"]
[Black "Kotyk, Michael"]
[Result "1-0"]
[Board "88"]
[TimeControl "180+1"]
[WhiteFideId "24108600"]
[BlackFideId "16214501"]
[WhiteElo "2748"]
[BlackElo "2512"]
[WhiteTeam "MNE"]
[BlackTeam "GER"]
[WhiteClock "0:02:50"]
[BlackClock "0:02:27"]

1. e4 {[%clk 0:03:00]}  e5 {[%clk 0:02:59]} 2. d4 {[%clk 0:03:00]}  exd4 {[%clk 0:02:59]} 3. Qxd4 {[%clk 0:03:01]}  Nc6 {[%clk 0:02:58]} 4. Qd3 {[%clk 0:03:02]}  g6 {[%clk 0:02:58]} 5. Nc3 {[%clk 0:03:02]}  Bg7 {[%clk 0:02:58]} 6. Nf3 {[%clk 0:03:03]}  Nge7 {[%clk 0:02:58]} 7. Bg5 {[%clk 0:03:01]}  h6 {[%clk 0:02:58]} 8. Bh4 {[%clk 0:03:01]}  d6 {[%clk 0:02:58]} 9. O-O-O {[%clk 0:03:01]}  g5 {[%clk 0:02:58]} 10. Bg3 {[%clk 0:03:01]}  Ng6 {[%clk 0:02:58]} 11. h4 {[%clk 0:03:00]}  g4 {[%clk 0:02:58]} 12. Nd2 {[%clk 0:02:56]}  Be6 {[%clk 0:02:53]} 13. h5 {[%clk 0:02:56]}  Nge5 {[%clk 0:02:53]} 14. Qe3 {[%clk 0:02:56]}  Qf6 {[%clk 0:02:27]} 15. Bh4 {[%clk 0:02:50]} 1-0

[Event "December 5 Late 2023"]
[Site "https://www.chess.com"]
[Date "2023.12.05"]
[Round "4"]
[White "Mis, Mieszko"]
[Black "Haraguchi, Diego Sashaki"]
[Result "1-0"]
[Board "93"]
[TimeControl "180+1"]
[WhiteFideId "1196448"]
[BlackFideId "22729925"]
[WhiteElo "2650"]
[BlackElo "2414"]
[WhiteTeam "POL"]
[BlackTeam "BRA"]
[WhiteClock "0:02:51"]
[BlackClock "0:02:26"]

1. g3 {[%clk 0:03:00]}  Nf6 {[%clk 0:02:59]} 2. Bg2 {[%clk 0:02:59]}  g6 {[%clk 0:03:00]} 3. b3 {[%clk 0:02:57]}  Bg7 {[%clk 0:03:00]} 4. Bb2 {[%clk 0:02:58]}  O-O {[%clk 0:03:01]} 5. Nf3 {[%clk 0:02:58]}  d5 {[%clk 0:03:01]} 6. O-O {[%clk 0:02:58]}  c5 {[%clk 0:03:01]} 7. e3 {[%clk 0:02:57]}  Nc6 {[%clk 0:03:01]} 8. Ne5 {[%clk 0:02:57]}  Nxe5 {[%clk 0:02:59]} 9. Bxe5 {[%clk 0:02:58]}  Bf5 {[%clk 0:02:59]} 10. c4 {[%clk 0:02:56]}  Rc8 {[%clk 0:02:50]} 11. cxd5 {[%clk 0:02:54]}  Nxd5 {[%clk 0:02:49]} 12. Bxg7 {[%clk 0:02:55]}  Bxb1 {[%clk 0:02:35]} 13. Bxf8 {[%clk 0:02:54]}  Bd3 {[%clk 0:02:33]} 14. Bh6 {[%clk 0:02:51]}  Bxf1 {[%clk 0:02:30]} 15. Qxf1 {[%clk 0:02:52]}  f6 {[%clk 0:02:26]} 16. Qc4 {[%clk 0:02:51]} 1-0

[Event "December 5 Late 2023"]
[Site "https://www.chess.com"]
[Date "2023.12.05"]
[Round "4"]
[White "Ambartsumova, Karina"]
[Black "Al-Saffar, Araz Basim Mohammed S"]
[Result "1-0"]
[Board "95"]
[TimeControl "180+1"]
[WhiteFideId "4166299"]
[BlackFideId "4801040"]
[WhiteElo "2639"]
[BlackElo "2390"]
[WhiteTeam "RUS"]
[BlackTeam "IRQ"]
[WhiteClock "0:01:46"]
[BlackClock "0:02:21"]

1. d4 {[%clk 0:03:00]}  Nf6 {[%clk 0:02:58]} 2. c4 {[%clk 0:03:01]}  e6 {[%clk 0:02:56]} 3. Nc3 {[%clk 0:03:00]}  Bb4 {[%clk 0:02:56]} 4. a3 {[%clk 0:03:01]}  Bxc3+ {[%clk 0:02:56]} 5. bxc3 {[%clk 0:03:02]}  d6 {[%clk 0:02:56]} 6. e3 {[%clk 0:03:02]}  c5 {[%clk 0:02:56]} 7. Bd3 {[%clk 0:03:02]}  b6 {[%clk 0:02:57]} 8. Ne2 {[%clk 0:03:03]}  Bb7 {[%clk 0:02:57]} 9. O-O {[%clk 0:03:03]}  O-O {[%clk 0:02:55]} 10. f3 {[%clk 0:03:03]}  Nc6 {[%clk 0:02:53]} 11. e4 {[%clk 0:03:03]}  Ne8 {[%clk 0:02:53]} 12. f4 {[%clk 0:02:43]}  f6 {[%clk 0:02:49]} 13. Be3 {[%clk 0:02:39]}  e5 {[%clk 0:02:48]} 14. d5 {[%clk 0:02:37]}  Na5 {[%clk 0:02:46]} 15. Ng3 {[%clk 0:02:36]}  Ba6 {[%clk 0:02:46]} 16. Qe2 {[%clk 0:02:21]}  g6 {[%clk 0:02:42]} 17. Rf2 {[%clk 0:02:15]}  Ng7 {[%clk 0:02:40]} 18. Raf1 {[%clk 0:02:15]}  Qe7 {[%clk 0:02:40]} 19. f5 {[%clk 0:01:48]}  g5 {[%clk 0:02:26]} 20. Bxg5 {[%clk 0:01:48]}  fxg5 {[%clk 0:02:25]} 21. f6 {[%clk 0:01:48]}  Qd7 {[%clk 0:02:24]} 22. fxg7 {[%clk 0:01:48]}  Qxg7 {[%clk 0:02:25]} 23. Nf5 {[%clk 0:01:47]}  Qg6 {[%clk 0:02:21]} 24. Ne7+ {[%clk 0:01:46]} 1-0

[Event "December 5 Late 2023"]
[Site "https://www.chess.com"]
[Date "2023.12.05"]
[Round "4"]
[White "Manukyan, Sargis A."]
[Black "yaguigor"]
[Result "0-1"]
[Board "97"]
[TimeControl "180+1"]
[WhiteFideId "13303970"]
[WhiteElo "2588"]
[BlackElo "2376"]
[WhiteTeam "ARM"]
[WhiteClock "0:00:02"]
[BlackClock "0:00:12"]

1. d4 {[%clk 0:03:00]}  d5 {[%clk 0:02:56]} 2. c4 {[%clk 0:03:01]}  c6 {[%clk 0:02:55]} 3. Nc3 {[%clk 0:03:01]}  Nf6 {[%clk 0:02:55]} 4. e3 {[%clk 0:03:02]}  e6 {[%clk 0:02:55]} 5. Nf3 {[%clk 0:03:03]}  Nbd7 {[%clk 0:02:54]} 6. Bd3 {[%clk 0:03:03]}  dxc4 {[%clk 0:02:54]} 7. Bxc4 {[%clk 0:03:04]}  b5 {[%clk 0:02:54]} 8. Bd3 {[%clk 0:03:05]}  Bd6 {[%clk 0:02:53]} 9. e4 {[%clk 0:03:04]}  e5 {[%clk 0:02:53]} 10. O-O {[%clk 0:03:04]}  O-O {[%clk 0:02:49]} 11. Bg5 {[%clk 0:03:05]}  exd4 {[%clk 0:02:32]} 12. Nxd4 {[%clk 0:03:04]}  Ne5 {[%clk 0:02:26]} 13. Be2 {[%clk 0:03:04]}  Bb7 {[%clk 0:02:18]} 14. Nf5 {[%clk 0:02:54]}  Bc5 {[%clk 0:02:08]} 15. Qc1 {[%clk 0:02:49]}  Ned7 {[%clk 0:01:27]} 16. Rd1 {[%clk 0:02:44]}  Qb6 {[%clk 0:01:24]} 17. Qf4 {[%clk 0:02:12]}  Rfe8 {[%clk 0:01:13]} 18. Bxf6 {[%clk 0:02:04]}  Nxf6 {[%clk 0:01:12]} 19. Qg5 {[%clk 0:02:04]}  Bf8 {[%clk 0:01:03]} 20. Nh6+ {[%clk 0:01:59]}  Kh8 {[%clk 0:01:03]} 21. Nxf7+ {[%clk 0:02:00]}  Kg8 {[%clk 0:01:04]} 22. Nh6+ {[%clk 0:01:52]}  Kh8 {[%clk 0:01:03]} 23. e5 {[%clk 0:01:44]}  gxh6 {[%clk 0:00:58]} 24. Qxf6+ {[%clk 0:01:42]}  Bg7 {[%clk 0:00:59]} 25. Qh4 {[%clk 0:01:28]}  Rxe5 {[%clk 0:00:57]} 26. Rd7 {[%clk 0:01:26]}  Rf8 {[%clk 0:00:53]} 27. Bf3 {[%clk 0:01:17]}  Rg5 {[%clk 0:00:45]} 28. Ne4 {[%clk 0:01:12]}  Rxf3 {[%clk 0:00:40]} 29. Nxg5 {[%clk 0:01:07]}  hxg5 {[%clk 0:00:40]} 30. Rxb7 {[%clk 0:00:36]}  Qxb7 {[%clk 0:00:39]} 31. Qxg5 {[%clk 0:00:36]}  Rf8 {[%clk 0:00:38]} 32. Re1 {[%clk 0:00:34]}  Qf7 {[%clk 0:00:36]} 33. Re2 {[%clk 0:00:31]}  Qxa2 {[%clk 0:00:35]} 34. g3 {[%clk 0:00:28]}  Qd5 {[%clk 0:00:33]} 35. Qe7 {[%clk 0:00:25]}  a5 {[%clk 0:00:30]} 36. h4 {[%clk 0:00:25]}  a4 {[%clk 0:00:25]} 37. Kh2 {[%clk 0:00:19]}  Qf7 {[%clk 0:00:21]} 38. Qc5 {[%clk 0:00:18]}  Qf3 {[%clk 0:00:21]} 39. Rd2 {[%clk 0:00:17]}  Re8 {[%clk 0:00:19]} 40. Rd7 {[%clk 0:00:15]}  h6 {[%clk 0:00:16]} 41. Rd3 {[%clk 0:00:02]}  Qxd3 {[%clk 0:00:14]} 42. Qxc6 {[%clk 0:00:02]}  Qe4 {[%clk 0:00:14]} 43. Qxb5 {[%clk 0:00:02]}  Rf8 {[%clk 0:00:13]} 44. Qf1 {[%clk 0:00:03]}  Qf3 {[%clk 0:00:13]} 45. Kg1 {[%clk 0:00:03]}  Bd4 {[%clk 0:00:13]} 46. Qc4 {[%clk 0:00:01]}  Qxf2+ {[%clk 0:00:12]} 47. Kh1 {[%clk 0:00:02]}  Qg1# {[%clk 0:00:12]} 0-1

[Event "December 5 Late 2023"]
[Site "https://www.chess.com"]
[Date "2023.12.05"]
[Round "4"]
[White "Slugin, Sergey"]
[Black "Blanco Diez, David"]
[Result "1-0"]
[Board "101"]
[TimeControl "180+1"]
[WhiteFideId "4122569"]
[BlackFideId "32032927"]
[WhiteElo "2699"]
[BlackElo "2410"]
[WhiteTeam "RUS"]
[BlackTeam "ESP"]
[WhiteClock "0:00:14"]
[BlackClock "0:00:00"]

1. d4 {[%clk 0:02:59]}  g6 {[%clk 0:03:00]} 2. c3 {[%clk 0:02:59]}  Bg7 {[%clk 0:03:00]} 3. Nf3 {[%clk 0:02:59]}  d6 {[%clk 0:02:59]} 4. Bg5 {[%clk 0:03:00]}  Nc6 {[%clk 0:02:57]} 5. Nbd2 {[%clk 0:03:00]}  h6 {[%clk 0:02:52]} 6. Bh4 {[%clk 0:02:59]}  Nf6 {[%clk 0:02:49]} 7. e4 {[%clk 0:02:59]}  e5 {[%clk 0:02:45]} 8. Be2 {[%clk 0:02:54]}  Bg4 {[%clk 0:02:39]} 9. dxe5 {[%clk 0:02:51]}  dxe5 {[%clk 0:02:34]} 10. O-O {[%clk 0:02:51]}  O-O {[%clk 0:02:34]} 11. Bg3 {[%clk 0:02:40]}  Nh5 {[%clk 0:02:09]} 12. Nc4 {[%clk 0:02:31]}  Bxf3 {[%clk 0:02:05]} 13. Bxf3 {[%clk 0:02:27]}  Nxg3 {[%clk 0:02:04]} 14. hxg3 {[%clk 0:02:26]}  Qxd1 {[%clk 0:02:00]} 15. Rfxd1 {[%clk 0:02:25]}  Rfd8 {[%clk 0:02:01]} 16. Bg4 {[%clk 0:02:19]}  h5 {[%clk 0:01:58]} 17. Bd7 {[%clk 0:02:17]}  Nb8 {[%clk 0:01:49]} 18. Ba4 {[%clk 0:01:39]}  Na6 {[%clk 0:01:44]} 19. b4 {[%clk 0:01:32]}  Kf8 {[%clk 0:01:32]} 20. Na5 {[%clk 0:01:19]}  b6 {[%clk 0:00:27]} 21. Nc4 {[%clk 0:01:19]}  Rac8 {[%clk 0:00:08]} 22. Bc6 {[%clk 0:01:17]}  Nb8 {[%clk 0:00:03]} 23. Bb7 {[%clk 0:01:06]}  Rxd1+ {[%clk 0:00:03]} 24. Rxd1 {[%clk 0:01:07]}  Re8 {[%clk 0:00:04]} 25. b5 {[%clk 0:01:08]}  Ke7 {[%clk 0:00:04]} 26. Ne3 {[%clk 0:01:04]}  Rd8 {[%clk 0:00:03]} 27. Nd5+ {[%clk 0:00:53]}  Kf8 {[%clk 0:00:04]} 28. Rb1 {[%clk 0:00:46]}  Nd7 {[%clk 0:00:03]} 29. Nxc7 {[%clk 0:00:39]}  Nc5 {[%clk 0:00:03]} 30. Bd5 {[%clk 0:00:37]}  Ke7 {[%clk 0:00:03]} 31. Rb4 {[%clk 0:00:15]}  Rc8 {[%clk 0:00:02]} 32. Na6 {[%clk 0:00:11]}  Nxa6 {[%clk 0:00:03]} 33. bxa6 {[%clk 0:00:11]}  Rxc3 {[%clk 0:00:03]} 34. Rxb6 {[%clk 0:00:10]}  axb6 {[%clk 0:00:03]} 35. a7 {[%clk 0:00:11]}  Ra3 {[%clk 0:00:03]} 36. a8=Q {[%clk 0:00:12]}  Rxa8 {[%clk 0:00:04]} 37. Bxa8 {[%clk 0:00:12]}  Kd6 {[%clk 0:00:05]} 38. Bd5 {[%clk 0:00:13]}  f6 {[%clk 0:00:04]} 39. Bf7 {[%clk 0:00:13]}  g5 {[%clk 0:00:03]} 40. Bxh5 {[%clk 0:00:13]}  Kc5 {[%clk 0:00:03]} 41. Bf7 {[%clk 0:00:14]}  Kd4 {[%clk 0:00:02]} 42. f3 {[%clk 0:00:13]}  Ke3 {[%clk 0:00:00]} 43. Kh2 {[%clk 0:00:14]} 1-0